bitfinex-derivatives/quotes_ETHF0:USTF0_20250104
["timestamp","ask_amount","ask_price","bid_price","bid_amount"]
[1736010388351,6.01e-06,3632.2,3632.1,5.56370212]
[1736010388543,6.01e-06,3632.2,3632.1,10.56370212]
[1736010388745,0.76017,3633.3,3632.1,10.56370212]
[1736010388946,0.76017,3633.3,3633.2,3.2078]
[1736010389449,0.4849,3633.3,3633.2,3.2078]
[1736010390039,0.4849,3633.3,3633.2,3.48308]
[1736010390449,0.4849,3633.3,3633.2,3.2078]
[1736010390852,0.76017,3633.3,3633.2,3.2078]
[1736010391542,0.76017,3633.3,3632.7,2.08054212]
[1736010391543,3.6927,3633.3,3632.4,2.08054212]
[1736010391743,0.27532,3632.7,3632.4,2.08054212]
[1736010391941,4.7937,3633.3,3632.4,2.08054212]
[1736010392144,4.7937,3633.3,3632.5,0.27533]
[1736010392145,0.27531,3632.8,3632.5,0.27533]
[1736010392344,0.27531,3632.8,3632.4,2.35587212]
[1736010392553,0.27531,3632.8,3632.5,0.27533]
[1736010392851,4.7937,3633.3,3632.4,2.08054212]
[1736010393050,0.2753,3632.9,3632.5,0.27533]
[1736010393653,4.7937,3633.3,3632.7,2.08054212]
[1736010393956,3.6927,3633.3,3633.0,2.08054212]
[1736010394158,3.6927,3633.3,3633.2,0.27528]
[1736010394542,3.6927,3633.3,3632.7,3.2078]
[1736010394851,0.4849,3633.3,3633.0,2.35583212]
[1736010395054,0.4849,3633.3,3633.0,2.08054212]
[1736010395643,0.27529,3633.0,3632.6,0.27532]
[1736010395840,3.2078,3632.9,3631.9,2.08054212]
[1736010396046,0.482,3632.8,3632.0,0.27536]
[1736010396244,0.27534,3632.4,3632.0,0.27536]
[1736010396449,0.4857,3632.3,3632.0,0.27536]
[1736010396652,0.4857,3632.3,3631.9,2.08054212]
[1736010396950,0.4773,3632.8,3632.2,2.08054212]
[1736010397147,0.4773,3632.8,3632.6,0.27532]
[1736010398153,0.4773,3632.8,3632.7,0.27531]
[1736010398653,0.4857,3633.1,3632.8,0.2753]
[1736010398959,0.2753,3633.0,3632.7,0.27531]
[1736010399155,0.76099,3633.1,3632.7,0.27531]
[1736010399548,0.27529,3633.0,3632.7,0.27531]
[1736010399749,0.4857,3633.1,3632.5,2.08054212]
[1736010400349,0.2753,3633.0,3632.7,0.27531]
[1736010400658,0.4857,3633.1,3632.2,5.28834212]
[1736010400854,3.2078,3632.8,3632.2,3.2078]
[1736010401055,0.27534,3632.4,3632.1,0.27535]
[1736010401252,0.4348,3632.3,3631.9,2.08054212]
[1736010401459,0.9046,3632.3,3632.2,0.27535]
[1736010401658,0.9046,3632.3,3632.2,2.35589212]
[1736010401857,0.4348,3632.3,3632.2,2.35589212]
[1736010402054,1.3825,3633.3,3633.1,0.27528]
[1736010402254,1.3825,3633.3,3632.5,2.08054212]
[1736010402661,0.27528,3633.2,3632.5,2.08054212]
[1736010403158,1.3825,3633.3,3632.5,2.08054212]
[1736010403751,1.65777,3633.3,3632.9,0.27529]
[1736010403959,1.3825,3633.3,3632.5,2.08054212]
[1736010404158,0.27528,3633.2,3632.8,0.2753]
[1736010404358,0.27528,3633.2,3632.5,2.08054212]
[1736010404658,1.3825,3633.3,3632.9,0.2753]
[1736010404855,1.3825,3633.3,3632.6,3.2078]
[1736010405163,1.3825,3633.3,3633.2,0.27528]
[1736010406161,0.9046,3633.3,3633.2,0.27528]
[1736010407163,0.9046,3633.3,3632.8,2.08054212]
[1736010407962,0.9046,3633.3,3633.1,0.27528]
[1736010408165,0.9046,3633.3,3632.9,0.2753]
[1736010408470,0.9046,3633.3,3632.8,2.08054212]
[1736010408765,0.9046,3633.3,3633.2,0.27528]
[1736010409069,0.9046,3633.3,3632.6,3.2078]
[1736010409263,0.27529,3633.1,3632.8,0.2753]
[1736010409562,0.9046,3633.3,3632.5,2.08054212]
[1736010409771,0.27529,3633.0,3632.8,0.2753]
[1736010410069,0.7097,3632.9,3632.7,0.27531]
[1736010410361,0.4344,3632.9,3632.8,0.27531]
[1736010411152,3.6422,3632.9,3632.2,0.27535]
[1736010411362,0.27534,3632.5,3632.1,3.2078]
[1736010411562,0.4443,3632.4,3632.3,0.27534]
[1736010412058,0.4443,3632.8,3632.7,0.27531]
[1736010412259,0.9136,3632.8,3632.7,0.27531]
[1736010412458,0.4693,3632.8,3632.7,0.27531]
[1736010413261,0.4693,3632.8,3632.5,5.28834212]
[1736010413262,0.27527,3633.3,3633.2,0.27527]
[1736010413464,0.9279,3633.3,3633.2,0.27527]
[1736010413760,0.9279,3633.3,3633.2,0.27162181]
[1736010414861,0.9279,3633.3,3633.2,0.27528]
[1736010415166,0.9279,3633.3,3633.0,0.27529]
[1736010415364,0.27528,3633.2,3633.0,0.27529]
[1736010415660,0.9279,3633.3,3632.9,3.2078]
[1736010415863,1.20317,3633.3,3633.1,0.27528]
[1736010417064,0.27529,3633.1,3632.9,3.48309]
[1736010418560,0.27529,3633.1,3632.9,3.4831]
[1736010418762,0.27529,3633.1,3632.9,3.48309]
[1736010419762,0.27529,3633.1,3632.9,0.27529]
[1736010419966,0.27529,3633.1,3632.9,0.2753]
[1736010420165,0.27529,3633.1,3632.6,3.2078]
[1736010420166,0.27528,3633.2,3632.2,3.2078]
[1736010420373,3.2078,3632.6,3631.8,3.2078]
[1736010420570,0.27535,3632.2,3631.8,3.2078]
[1736010420766,0.27537,3632.0,3631.9,0.27537]
[1736010420969,0.68835,3632.4,3631.6,6.51424804]
[1736010421177,0.27539,3631.7,3631.6,6.51424804]
[1736010421470,0.68837,3632.3,3631.8,0.27538]
[1736010421471,0.27537,3632.0,3631.8,0.27538]
[1736010421671,0.27538,3631.9,3631.7,0.27539]
[1736010421866,0.4203,3631.8,3631.3,2.08054212]
[1736010422069,0.4676,3631.7,3631.6,0.27539]
[1736010422477,0.4676,3631.7,3631.3,2.08054212]
[1736010422770,0.7463,3631.6,3631.3,2.08054212]
[1736010422972,0.4709,3631.6,3631.5,0.2754]
[1736010423373,0.4676,3631.7,3631.3,2.08054212]
[1736010423570,0.4676,3631.7,3631.6,2.35594212]
[1736010423771,0.4676,3631.7,3631.6,0.2754]
[1736010423772,0.74299,3631.7,3631.6,0.2754]
[1736010424671,0.4676,3631.7,3631.3,2.08054212]
[1736010424975,0.27543,3631.3,3631.1,0.27543]
[1736010425178,0.27543,3631.3,3631.0,5.28834212]
[1736010425377,0.27543,3631.3,3631.1,0.27543]
[1736010425981,0.27543,3631.3,3631.0,2.08054212]
[1736010425982,0.4676,3631.7,3631.0,2.08054212]
[1736010426270,0.4712,3631.2,3631.0,2.35598212]
[1736010426475,0.4327,3631.1,3631.0,0.27544]
[1736010427071,0.4327,3631.1,3630.7,2.08054212]
[1736010427278,0.4327,3631.1,3631.0,0.27544]
[1736010429381,0.4327,3631.1,3630.7,2.08054212]
[1736010429678,0.70814,3631.1,3630.9,0.27545]
[1736010429875,0.4327,3631.1,3630.7,2.08054212]
[1736010430276,0.70814,3631.1,3630.9,0.27545]
[1736010430577,0.70814,3631.1,3630.8,0.27545]
[1736010430578,0.27545,3631.0,3630.8,0.27545]
[1736010430773,0.4285,3630.9,3630.8,0.27545]
[1736010431476,0.4712,3631.2,3631.1,0.27543]
[1736010431876,0.74663,3631.2,3630.9,0.27544]
[1736010432182,0.27545,3631.0,3630.8,0.27546]
[1736010432571,0.4201,3631.1,3630.5,4.27098432]
[1736010432776,0.4201,3631.1,3630.8,0.27545]
[1736010432976,0.4201,3631.1,3631.0,0.27544]
[1736010436584,0.69553,3631.1,3631.0,0.27544]
[1736010436779,0.4201,3631.1,3631.0,0.27544]
[1736010437879,0.4201,3631.1,3630.9,0.27545]
[1736010438081,1.116,3631.0,3630.3,4.27098432]
[1736010438484,0.27546,3630.8,3630.6,0.27547]
[1736010438693,0.4454,3630.7,3630.6,0.27547]
[1736010439184,0.8519,3631.1,3631.0,0.27544]
[1736010439484,3.48319,3631.7,3631.4,0.27541]
[1736010439685,0.8473,3631.6,3631.4,0.27541]
[1736010440375,0.8473,3631.6,3630.8,2.76919212]
[1736010440691,0.8473,3631.6,3631.5,0.2754]
[1736010440692,0.4318,3631.6,3631.5,0.2754]
[1736010440981,5.61415983,3632.7,3631.5,3.2078]
[1736010441189,1.2954,3632.5,3632.4,0.27534]
[1736010441375,1.2954,3632.5,3631.6,3.2078]
[1736010441575,0.27535,3632.3,3632.0,0.27536]
[1736010441780,0.27534,3632.4,3631.6,3.2078]
[1736010441983,0.27534,3632.4,3632.1,0.27536]
[1736010442183,1.57073,3632.5,3632.2,0.27535]
[1736010442583,1.2954,3632.5,3632.3,0.27534]
[1736010443289,1.2954,3632.5,3632.4,0.27534]
[1736010443885,0.8473,3632.5,3632.4,0.27534]
[1736010444886,0.4318,3632.5,3632.4,0.27534]
[1736010445086,0.4444,3632.8,3632.7,0.27531]
[1736010445291,0.8529,3632.8,3632.7,0.27531]
[1736010446482,0.8529,3632.8,3632.1,0.68841]
[1736010446688,0.8529,3632.8,3632.6,0.27532]
[1736010446889,0.8529,3632.8,3632.0,5.28834212]
[1736010447292,0.8529,3632.8,3632.5,0.27532]
[1736010447493,0.8529,3632.8,3632.7,0.27531]
[1736010447703,0.8529,3632.8,3632.6,0.27532]
[1736010447882,4.0607,3632.8,3632.0,3.2078]
[1736010448487,3.6163,3632.8,3632.7,0.27531]
[1736010449690,3.6163,3632.8,3632.0,5.28834212]
[1736010449993,3.6163,3632.8,3632.6,0.27532]
[1736010450994,0.4085,3632.8,3632.7,0.27531]
[1736010453094,3.2078,3633.2,3632.3,2.08054212]
[1736010453298,0.8407,3633.1,3632.9,0.27529]
[1736010453496,0.8407,3633.1,3632.3,2.08054212]
[1736010453800,0.8407,3633.1,3633.0,0.27529]
[1736010456795,0.8407,3633.1,3632.5,3.2078]
[1736010457099,0.8407,3633.1,3632.9,0.2753]
[1736010457303,0.8407,3633.1,3633.0,0.27529]
[1736010461403,0.8407,3633.1,3632.5,3.2078]
[1736010461606,0.27529,3633.0,3632.8,0.2753]
[1736010462008,0.8407,3633.1,3632.7,0.27531]
[1736010462009,0.2753,3632.9,3632.7,0.27531]
[1736010462406,0.8407,3633.1,3632.5,3.2078]
[1736010462407,0.2753,3633.0,3632.8,0.2753]
[1736010462607,0.8407,3633.1,3633.0,0.27529]
[1736010463810,1.11598,3633.1,3633.0,0.27529]
[1736010464003,0.8407,3633.1,3633.0,0.27529]
[1736010464617,3.6393,3633.4,3633.3,0.27527]
[1736010465212,0.4315,3633.4,3633.3,0.27527]
[1736010472122,0.71284,3633.7,3633.6,0.27525]
[1736010472525,0.27525,3633.6,3633.0,3.2078]
[1736010472825,0.27525,3633.6,3633.4,0.27526]
[1736010473224,0.27526,3633.5,3633.3,0.27526]
[1736010473426,0.27525,3633.5,3633.1,0.27528]
[1736010473722,0.27525,3633.6,3633.4,0.27526]
[1736010475924,0.27525,3633.5,3633.4,0.27526]
[1736010476427,0.4376,3633.7,3633.0,3.2078]
[1736010476818,0.27527,3633.3,3633.1,0.27528]
[1736010477028,0.8609,3633.2,3632.6,5.28834212]
[1736010477324,0.8609,3633.2,3632.6,3.2078]
[1736010477625,0.2753,3632.9,3632.7,0.27531]
[1736010477828,0.4463,3632.8,3632.7,0.27531]
[1736010481319,0.4463,3632.8,3632.2,3.2078]
[1736010481528,0.27532,3632.7,3632.6,0.27532]
[1736010482427,0.4463,3632.8,3632.7,0.27531]
[1736010482628,0.72161,3632.8,3632.7,0.27531]
[1736010482817,0.4463,3632.8,3632.7,0.27531]
[1736010483024,0.27534,3632.3,3632.2,0.27535]
[1736010483224,2.52684212,3632.8,3631.9,4.27098432]
[1736010483929,0.27533,3632.5,3632.3,0.27534]
[1736010484131,2.52684212,3632.8,3631.9,4.27098432]
[1736010484327,0.27535,3632.3,3632.2,0.27535]
[1736010484524,0.4387,3632.4,3631.8,9.55932644]
[1736010484729,0.4387,3632.4,3631.8,7.47878432]
[1736010484925,0.27536,3632.1,3632.0,0.27537]
[1736010485532,0.4387,3632.4,3631.8,7.47878432]
[1736010485827,0.4387,3632.4,3631.7,4.27098432]
[1736010486031,0.27538,3631.9,3631.7,4.54637432]
[1736010486228,0.8142,3631.8,3631.7,4.27098432]
[1736010486534,1.08958,3631.8,3631.7,4.27098432]
[1736010486829,0.8142,3631.8,3631.7,4.27098432]
[1736010487024,1.08958,3631.8,3631.7,4.27098432]
[1736010487225,1.08958,3631.8,3631.6,0.27539]
[1736010487534,0.4133,3631.7,3631.5,4.27098432]
[1736010487727,0.4133,3631.7,3631.6,0.2754]
[1736010488234,0.4133,3631.7,3631.4,4.27098432]
[1736010488434,0.68869,3631.7,3631.4,4.27098432]
[1736010488735,0.2754,3631.6,3631.5,0.2754]
[1736010488928,0.2754,3631.6,3631.4,4.27098432]
[1736010488929,0.2754,3631.5,3631.4,4.27098432]
[1736010489338,0.2754,3631.5,3631.3,4.54640432]
[1736010489528,0.2754,3631.6,3631.3,4.54640432]
[1736010489731,0.27541,3631.4,3631.3,4.54640432]
[1736010489932,0.27541,3631.5,3631.3,4.54640432]
[1736010490234,0.4133,3631.7,3631.3,4.27098432]
[1736010490235,0.27541,3631.4,3631.3,4.27098432]
[1736010490429,0.4133,3631.7,3631.4,0.27541]
[1736010490430,0.2754,3631.6,3631.4,0.27541]
[1736010490636,0.2754,3631.6,3631.1,4.27098432]
[1736010490637,0.4133,3631.7,3631.6,0.2754]
[1736010491335,0.4133,3631.7,3631.2,2.08054212]
[1736010491541,0.4133,3631.7,3631.5,0.2754]
[1736010491734,0.4133,3631.7,3631.6,0.2754]
[1736010493941,0.8142,3631.8,3631.7,0.27539]
[1736010495632,0.27536,3632.2,3632.0,0.27536]
[1736010495933,0.8657,3632.1,3632.0,0.27536]
[1736010496144,0.8657,3632.1,3631.8,0.27538]
[1736010496338,0.27537,3632.0,3631.7,0.27539]
[1736010496937,0.27539,3631.8,3631.6,0.27539]
[1736010497138,0.4278,3631.7,3631.6,0.27539]
[1736010497333,0.2754,3631.5,3631.3,3.48322]
[1736010497537,0.8431,3631.4,3631.3,3.48322]
[1736010497941,0.8431,3631.4,3631.3,0.27542]
[1736010500944,1.109,3631.9,3631.6,0.2754]
[1736010501140,3.48317,3632.0,3631.9,0.27537]
[1736010501141,3.2078,3632.0,3631.9,0.27537]
[1736010501947,0.8144,3632.2,3632.1,0.27536]
[1736010502545,0.8144,3632.2,3631.6,2.08054212]
[1736010502847,0.8144,3632.2,3632.1,0.27536]
[1736010503736,0.8144,3632.2,3631.6,2.76904212]
[1736010503737,0.8144,3632.2,3631.6,2.08054212]
[1736010503937,1.08976,3632.2,3632.0,0.27537]
[1736010504246,0.8144,3632.2,3632.1,0.27536]
[1736010505059,0.8144,3632.2,3631.6,2.08054212]
[1736010505244,0.8144,3632.2,3632.1,0.27536]
[1736010505547,0.27537,3632.0,3631.9,0.27537]
[1736010506040,1.08976,3632.2,3631.6,2.08054212]
[1736010506246,0.8144,3632.2,3632.1,0.27536]
[1736010506646,0.8144,3632.2,3631.6,2.08054212]
[1736010506647,0.27536,3632.1,3632.0,0.27536]
[1736010507651,1.08975,3632.2,3632.1,0.27536]
[1736010507845,0.8144,3632.2,3632.1,0.27536]
[1736010508051,0.8144,3632.2,3631.6,2.08054212]
[1736010508245,0.27536,3632.1,3631.6,2.08054212]
[1736010508549,0.27536,3632.1,3632.0,0.27537]
[1736010509547,0.8144,3632.2,3631.6,2.08054212]
[1736010509854,0.8144,3632.2,3632.0,0.27537]
[1736010509855,0.27536,3632.1,3632.0,0.27537]
[1736010510042,0.8144,3632.2,3631.6,2.08054212]
[1736010510244,1.08976,3632.2,3631.6,2.08054212]
[1736010510551,1.08976,3632.2,3632.0,0.27536]
[1736010511745,0.27536,3632.1,3632.0,0.27536]
[1736010512048,1.08976,3632.2,3632.0,0.27536]
[1736010512253,0.27536,3632.1,3632.0,0.27536]
[1736010512439,0.8144,3632.2,3631.6,0.2754]
[1736010512644,0.27539,3631.7,3631.6,0.2754]
[1736010513046,0.27538,3631.8,3631.5,3.2078]
[1736010513246,0.4092,3631.7,3631.6,0.2754]
[1736010521649,0.4092,3631.7,3631.3,7.47878432]
[1736010521853,0.2754,3631.6,3631.5,0.2754]
[1736010522360,0.68459,3631.7,3631.6,0.2754]
[1736010523954,0.27539,3631.7,3631.6,0.2754]
[1736010524253,1.111,3632.0,3631.9,0.27537]
[1736010528451,1.111,3632.0,3631.8,4.27098432]
[1736010528653,0.27537,3631.9,3631.8,4.54636432]
[1736010528853,1.38637,3632.0,3631.8,4.54636432]
[1736010529459,1.38637,3632.0,3631.8,4.27098432]
[1736010529659,1.111,3632.0,3631.8,4.27098432]
[1736010529865,1.111,3632.0,3631.8,4.54636432]
[1736010530065,1.111,3632.0,3631.8,4.27098432]
[1736010530261,1.111,3632.0,3631.9,0.27537]
[1736010531463,1.111,3632.0,3631.9,5.73991029]
[1736010531959,0.4629,3632.2,3632.1,0.27536]
[1736010532555,0.4629,3632.2,3632.1,5.73990029]
[1736010534568,0.9184,3632.2,3632.1,5.73990029]
[1736010535073,0.9184,3632.2,3632.1,4.59640441]
[1736010535873,0.9184,3632.2,3632.1,0.27536]
[1736010537175,0.9184,3632.2,3632.1,12.24943265]
[1736010537378,1.19375,3632.2,3632.1,11.97407265]
[1736010537675,1.66115,3632.2,3632.1,11.97407265]
[1736010538269,1.66115,3632.2,3632.1,4.32008021]
[1736010539873,1.66115,3632.2,3632.1,4.59544021]
[1736010540372,1.3858,3632.2,3632.0,6.51424804]
[1736010540577,0.27536,3632.1,3632.0,6.78961804]
[1736010541373,0.27536,3632.1,3632.0,5.72428173]
[1736010541775,1.66115,3632.2,3632.1,0.27536]
[1736010542580,1.66115,3632.2,3632.1,4.59425365]
[1736010542768,1.66115,3632.2,3632.1,4.31889365]
[1736010543873,1.66115,3632.2,3632.1,4.59425365]
[1736010544973,1.66115,3632.2,3632.1,4.31889365]
[1736010545574,6.94949212,3632.2,3632.1,0.32459365]
[1736010547481,0.27539,3631.7,3631.5,0.2754]
[1736010548274,10.8550218,3632.2,3631.3,9.72204804]
[1736010548477,0.2754,3631.6,3631.4,0.27541]
[1736010548880,0.4703,3631.5,3631.4,0.27541]
[1736010549583,0.4703,3631.5,3631.3,9.72204804]
[1736010549783,0.4703,3631.5,3631.4,5.62410889]
[1736010550081,5.7457,3631.5,3631.4,4.65139889]
[1736010550283,1.6145,3631.5,3631.4,4.65139889]
[1736010550876,2.7165,3631.5,3631.4,4.65139889]
[1736010551881,2.7165,3631.5,3630.8,0.27545]
[1736010551882,0.27544,3631.1,3630.8,0.27545]
[1736010552279,2.4411,3631.5,3630.8,0.27545]
[1736010552481,0.27544,3631.0,3630.8,0.27545]
[1736010552682,2.4411,3631.5,3630.8,0.27545]
[1736010552883,0.27544,3631.1,3630.8,0.27545]
[1736010553782,3.24699105,3631.4,3630.9,2.08054212]
[1736010553980,3.24699105,3631.4,3631.3,0.27542]
[1736010554878,6.45479105,3631.6,3631.3,0.27542]
[1736010555078,0.2754,3631.5,3631.3,0.27542]
[1736010555283,0.2754,3631.5,3631.4,0.4247]
[1736010555986,1.1261,3631.5,3631.4,0.4247]
[1736010556191,1.2713,3631.5,3631.0,0.4418]
[1736010556483,0.27543,3631.1,3631.0,0.4247]
[1736010557282,0.27544,3631.0,3630.9,6.51424804]
[1736010558189,0.27544,3631.0,3630.7,0.73126]
[1736010558387,3.47122605,3631.4,3630.7,0.4558]
[1736010558582,3.47122605,3631.4,3630.7,0.73126]
[1736010558883,3.47122605,3631.4,3630.7,0.4558]
[1736010559091,0.27546,3630.8,3630.7,0.4558]
[1736010559489,3.2078,3631.2,3630.7,0.4558]
[1736010559684,3.2078,3631.2,3630.7,0.73126]
[1736010559992,3.2078,3631.2,3630.7,0.4558]
[1736010559993,0.27545,3631.0,3630.7,0.4558]
[1736010560191,0.27545,3631.0,3630.7,0.73126]
[1736010560384,0.27545,3631.0,3630.7,0.4558]
[1736010560585,0.27545,3631.0,3630.7,0.73126]
[1736010560785,0.27545,3631.0,3630.8,0.27546]
[1736010560987,1.37745,3631.0,3630.8,0.27546]
[1736010561186,6.45479105,3631.2,3630.7,0.4558]
[1736010561390,6.45479105,3631.2,3631.1,0.27543]
[1736010561391,3.24699105,3631.2,3631.1,0.27543]
[1736010561785,3.52242105,3631.2,3631.0,0.27544]
[1736010562393,0.27543,3631.1,3630.7,0.4558]
[1736010562588,0.27543,3631.1,3630.9,0.27545]
[1736010562794,2.3733,3631.5,3630.7,0.4558]
[1736010562989,0.27544,3631.1,3630.9,0.27545]
[1736010565092,2.3733,3631.5,3630.7,0.4558]
[1736010565587,0.27545,3631.0,3630.7,0.4558]
[1736010565785,0.27544,3631.1,3630.9,0.27545]
[1736010567991,5.62029105,3631.5,3630.7,0.4558]
[1736010568296,5.62029105,3631.5,3630.8,0.27546]
[1736010568297,3.2078,3631.2,3630.8,0.27546]
[1736010568794,0.27545,3630.9,3630.8,0.27546]
[1736010569591,0.27545,3630.9,3630.7,0.73126]
[1736010569797,0.27545,3630.9,3630.8,0.27546]
[1736010570289,3.2078,3631.2,3630.7,0.73126]
[1736010570699,0.27545,3630.9,3630.7,0.73126]
[1736010571893,3.42576657,3631.2,3630.7,0.4558]
[1736010572196,0.27546,3630.8,3630.7,0.4558]
[1736010572799,0.27546,3630.8,3630.6,0.27547]
[1736010573794,3.42576657,3631.2,3630.6,0.27547]
[1736010574395,0.27546,3630.8,3630.6,0.27547]
[1736010577004,0.27547,3630.7,3630.5,0.27548]
[1736010577301,0.71777,3630.7,3630.6,0.27547]
[1736010578200,0.71777,3630.7,3630.6,1.27731309]
[1736010578600,0.71777,3630.7,3630.6,1.00184309]
[1736010578900,0.71777,3630.7,3630.6,1.27731309]
[1736010579493,0.71777,3630.7,3630.6,1.00184309]
[1736010583308,0.4423,3630.7,3630.6,1.00184309]
[1736010583604,1.947,3630.8,3630.6,1.27731309]
[1736010583605,2.22246,3630.8,3630.6,1.27731309]
[1736010583804,0.27546,3630.8,3630.7,0.27547]
[1736010584106,0.27546,3630.8,3630.7,0.69057]
[1736010584798,0.27546,3630.8,3630.7,0.4151]
[1736010586110,0.27546,3630.8,3630.6,1.27731309]
[1736010586609,0.27547,3630.7,3630.6,1.00184309]
[1736010587008,0.27547,3630.7,3630.6,1.27731309]
[1736010587405,0.27547,3630.7,3630.6,1.00184309]
[1736010587609,0.27548,3630.5,3630.3,0.4267]
[1736010587914,1.102,3630.9,3630.3,0.4267]
[1736010587915,1.27733309,3630.4,3630.3,0.4267]
[1736010588103,4.48513309,3630.4,3630.3,0.4267]
[1736010590215,0.2755,3630.3,3630.0,1.72286309]
[1736010590509,0.27551,3630.1,3630.0,1.87494309]
[1736010591301,0.27551,3630.1,3630.0,0.8731]
[1736010591499,0.27551,3630.1,3630.0,0.4276]
[1736010592805,1.00184309,3630.2,3629.8,1.00184309]
[1736010593003,0.27553,3629.9,3629.8,1.00184309]
[1736010593417,0.27552,3630.0,3629.8,1.27737309]
[1736010593606,0.27552,3630.0,3629.8,1.70297309]
[1736010594613,1.5516,3630.1,3629.8,1.00184309]
[1736010594809,0.27553,3629.9,3629.8,1.00184309]
[1736010595209,0.71193,3629.9,3629.8,1.00184309]
[1736010596106,0.71193,3629.9,3629.7,3.48334]
[1736010596306,0.27553,3629.8,3629.7,3.2078]
[1736010597009,1.27737309,3629.8,3629.7,3.2078]
[1736010597312,1.27737309,3629.8,3629.5,6.50088727]
[1736010597313,0.27555,3629.6,3629.5,6.50088727]
[1736010597518,1.27739309,3629.6,3629.5,6.50088727]
[1736010598011,1.27739309,3629.6,3629.5,4.43118727]
[1736010598232,6.00184309,3629.6,3629.0,1.47038727]
[1736010598430,1.27743309,3629.1,3629.0,1.47038727]
[1736010598713,2.37943309,3629.1,3629.0,1.47038727]
[1736010599613,0.27562,3628.7,3628.6,1e-08]
[1736010599813,1.27746309,3628.7,3628.6,1e-08]
[1736010600211,7.49909708,3628.7,3628.6,1e-08]
[1736010600612,0.27569,3627.8,3627.5,0.8763]
[1736010600808,1.37769,3627.8,3627.5,0.8763]
[1736010601213,0.2757,3627.7,3627.5,0.8763]
[1736010601515,0.2757,3627.6,3627.5,0.8763]
[1736010601717,1.37769,3627.8,3627.5,0.8763]
[1736010601911,0.68911,3628.4,3628.0,0.27566]
[1736010601912,3.48344,3628.4,3628.0,0.27566]
[1736010602117,4.3098,3628.4,3628.1,0.4293]
[1736010602319,4.3098,3628.4,3628.2,0.27565]
[1736010602514,4.3098,3628.4,3628.1,0.4293]
[1736010602818,4.3098,3628.4,3628.3,0.27565]
[1736010603519,4.3098,3628.4,3628.1,0.4293]
[1736010603718,4.3098,3628.4,3628.3,0.27565]
[1736010603909,4.3098,3628.4,3628.1,0.4293]
[1736010604417,4.3098,3628.4,3628.2,0.27566]
[1736010604616,4.3098,3628.4,3628.3,0.27565]
[1736010606019,6.53327708,3628.4,3627.5,3.2078]
[1736010606322,6.53327708,3628.4,3627.6,0.4376]
[1736010606323,4.58545,3628.4,3627.6,0.4376]
[1736010606619,0.27565,3628.3,3627.9,0.27567]
[1736010607020,0.27566,3628.2,3627.8,0.27568]
[1736010607516,0.27565,3628.3,3627.9,0.27568]
[1736010611221,0.27566,3628.2,3627.8,0.27568]
[1736010611417,0.27566,3628.2,3627.9,0.27568]
[1736010611618,0.27566,3628.1,3627.8,0.27568]
[1736010611823,0.27566,3628.1,3627.7,1.12569]
[1736010612824,0.27567,3628.0,3627.7,0.85]
[1736010613324,3.2078,3628.0,3627.7,0.4193]
[1736010613526,0.27573,3627.3,3627.1,0.4336]
[1736010613824,0.27573,3627.2,3627.1,0.4336]
[1736010614824,1.103,3627.3,3626.7,3.2078]
[1736010615130,1.103,3627.3,3626.0,8.65255062]
[1736010615131,2.22347708,3627.0,3626.0,8.65255062]
[1736010615325,3.2078,3626.6,3626.0,8.65255062]
[1736010615622,0.27579,3626.4,3626.1,0.27581]
[1736010615930,0.27581,3626.2,3625.8,0.27583]
[1736010616124,0.27581,3626.2,3625.7,5.43127708]
[1736010616125,1.103,3626.5,3625.7,3.2078]
[1736010616326,0.27583,3625.9,3625.6,0.8818]
[1736010616526,3.48363,3626.0,3625.6,1.15765]
[1736010617127,0.27583,3625.9,3625.6,0.8818]
[1736010617322,0.27584,3625.8,3625.6,0.8818]
[1736010617729,0.27585,3625.7,3625.6,0.8818]
[1736010618727,0.27585,3625.7,3625.2,3.48368]
[1736010618728,0.27585,3625.7,3624.9,0.2759]
[1736010619035,0.27587,3625.4,3624.9,0.2759]
[1736010619726,5.43127708,3625.6,3624.9,0.2759]
[1736010619928,0.27587,3625.5,3625.0,0.27589]
[1736010620128,0.27587,3625.4,3625.0,0.27589]
[1736010620333,5.43127708,3625.6,3624.7,3.6338]
[1736010620528,1.103,3625.6,3625.5,0.27586]
[1736010620824,5.70708708,3626.2,3625.5,0.27586]
[1736010620825,1.103,3625.7,3625.5,0.27586]
[1736010621225,1.103,3625.7,3624.9,3.2078]
[1736010621426,0.27586,3625.6,3625.2,0.27588]
[1736010621627,1.37885,3625.7,3625.2,0.27588]
[1736010621822,1.103,3625.7,3624.9,3.2078]
[1736010622028,1.103,3625.7,3625.1,0.27589]
[1736010622029,0.27586,3625.6,3625.1,0.27589]
[1736010622235,1.103,3625.7,3625.3,0.27587]
[1736010622531,1.37885,3625.7,3625.3,0.27587]
[1736010622731,1.37885,3625.7,3625.2,0.27588]
[1736010623531,1.37885,3625.7,3624.9,3.2078]
[1736010623729,1.103,3625.7,3624.9,3.2078]
[1736010623930,2.22347708,3626.2,3624.9,3.2078]
[1736010624135,2.22347708,3626.2,3625.3,3.2078]
[1736010624331,1.103,3626.1,3626.0,0.27582]
[1736010624632,1.103,3626.1,3625.8,0.4376]
[1736010625231,1.103,3626.1,3625.9,0.27583]
[1736010625437,2.22347708,3626.2,3625.9,0.27583]
[1736010625624,3.4836,3626.3,3626.0,0.27582]
[1736010625625,1.103,3626.1,3626.0,0.27582]
[1736010625827,3.2078,3626.3,3626.0,0.27582]
[1736010626024,1.103,3626.2,3625.8,0.4376]
[1736010626524,1.103,3626.2,3626.0,0.27582]
[1736010626928,1.103,3626.2,3626.1,0.27581]
[1736010627133,2.49923708,3626.8,3626.4,0.27579]